Workbook

Sheet Main
B2: COST OF STEAM CALCULATOR | AE2: Previous Unit | AF2: 1 | AG2: 2 | AH2: Paste Values (non formulated) | AJ2: Temp/ Pressure
B3: User Defined | P3: Unit Preferences | Q3: 1 | R3: 1: English 2: Metric | Y3: Type of Cost | AB3: =IF(Units_Pref, "Unit Preferences - English", "Unit Preferences - Metric") -> Unit Preferences - English | AE3: 2 | AF3: English | AG3: Metric | AH3: English | AI3: Metric
C4: Type of Cost: | P4: Type of Cost | Q4: 3 | R4: 1: Unloaded 2: Modified Unloaded 3: Loaded | Y4: Unloaded | AB4: Mass | AC4: =IF(AD4="lb",1,0.45359237) -> 1 | AD4: =IF(Units_Pref=1,"lb","kg") -> lb
C5: Fuel Cost: | E5: 8 | F5: =IF(Units_Pref=1,"US$ / MMBtu","US$ / GJ") -> US$ / MMBtu | M5: =IF(ISBLANK(E5),"¬","") ->  | Y5: Modified Unloaded | AB5: Length | AC5: =IF(AD5="ft",1,0.3048) -> 1 | AD5: =IF(Units_Pref=1,"ft","m") -> ft | AF5: =IF(Units_Pref=$AF$2,$E5,$E5*Unit_Preference_Energy_SI) -> 8 | AG5: =IF(Units_Pref=$AG$2,$E5,$E5/Unit_Preference_Energy_SI) -> 7.58253696 | AH5: 8 | AI5: 7.58253696
C6: Overall Boiler Efficiency: | E6: 80 | F6: % | M6: =IF(ISBLANK(E6),"¬","") ->  | Y6: Loaded | AB6: Pressure | AC6: =IF(AD6="psia",1,0.06894757293) -> 1 | AD6: =IF(Units_Pref=1,"psia","bara") -> psia
AB7: Energy | AC7: =IF(AD7="Btu",1,1.055055853) -> 1 | AD7: =IF(Units_Pref=1,"Btu","kJ") -> Btu
B8: Unloaded Cost | AB8: Velocity | AC8: =IF(AD8="ft/s",1,0.3048) -> 1 | AD8: =IF(Units_Pref=1,"ft/s","m/s") -> ft/s
C9: Steam Distribution Header
C10: Saturated Steam Generated at: | E10: 200 | M10: =IF(ISBLANK(E10),"¬","") ->  | P10: Type of Function | Q10: 1 | R10: 1: pressure 2: temperature | U10: Pressure | W10: Temperature | Y10: Enthalpy | AB10: Unit Conversion: 1 English unit to SI unit | AF10: =IF($Q10=1,IF(Units_Pref=$AF$2,$E10,$E10/Unit_Preference_Pres_SI),IF(Units_Pref=$AF$2,$E10,$E10*9/5+32)) -> 200 | AG10: =IF($Q10=1,IF(Units_Pref=$AG$2,$E10,$E10*Unit_Preference_Pres_SI),IF(Units_Pref=$AG$2,$E10,($E10-32)*5/9)) -> 13.78951459 | AH10: 200 | AI10: 13.78951459 | AJ10: =IF(Q10=1,psat_t(U11),Tsat_p(W11)) -> 15.51322486
C11: Total Enthalpy: | E11: =IF(Q10=1,hV_p(U11),hV_T(W11))*Unit_Preference_Energy/Unit_Preference_Mass -> 1199.747844 | F11: =IF(Units_Pref=1,"Btu/lb","kJ/kg") -> Btu/lb | U11: =IF(Q10=1,(E10+T36)/Unit_Preference_Pres,psat_t(W11)) -> 214.6959488 | V11: psia | W11: =IF(Q10=2,IF(Units_Pref=1,E10,E10*9/5+32),T_ph(U11,Y11)) -> 387.7977038 | X11: °F | Y11: =E11/Unit_Preference_Energy*Unit_Preference_Mass -> 1199.747844 | Z11: Btu/lb | AB11: 0.45359237 | AC11: kg
AB12: 0.3048 | AC12: m
C13: Condensate Return Header | AB13: 0.06894757293 | AC13: bara
C14: Boiler Feedwater at: | E14: 10 | M14: =IF(ISBLANK(E14),"¬","") ->  | P14: Type of Function | Q14: 1 | R14: 1: pressure 2: temperature | U14: Pressure | W14: Temperature | Y14: Enthalpy | AB14: 1.055055853 | AC14: kJ | AF14: =IF($Q14=1,IF(Units_Pref=$AF$2,$E14,$E14/Unit_Preference_Pres_SI),IF(Units_Pref=$AF$2,$E14,$E14*9/5+32)) -> 10 | AG14: =IF($Q14=1,IF(Units_Pref=$AG$2,$E14,$E14*Unit_Preference_Pres_SI),IF(Units_Pref=$AG$2,$E14,($E14-32)*5/9)) -> 0.6894757293 | AH14: 10 | AI14: 0.6894757293
C15: Enthalpy of BFW: | E15: =IF(Q14=1,hL_p(U15),hL_T(W15))*Unit_Preference_Energy/Unit_Preference_Mass -> 207.8216002 | F15: =IF(Units_Pref=1,"Btu/lb","kJ/kg") -> Btu/lb | P15: Pressure | R15: psia | U15: =IF(Q14=1,(E14+T36)/Unit_Preference_Pres,psat_t(W15)) -> 24.69594878 | V15: psia | W15: =IF(Q14=2,IF(Units_Pref=1,E14,E14*9/5+32),T_ph(U15,Y15)) -> 239.3706825 | X15: °F | Y15: =E15/Unit_Preference_Energy*Unit_Preference_Mass -> 207.8216002 | Z15: Btu/lb
AB16: Function for Steam
C17: Cost of Steam Calculated: | E17: =$E$5*(E11-E15)/1000/($E$6/100) -> 9.919262442 | F17: =IF(Units_Pref=1,"per 1,000 lbs of steam","per tonne of steam") -> per 1,000 lbs of steam | AB17: =IF(Units_Pref=1,"psig","barg") -> psig
AB18: =IF(Units_Pref=1,"°F","°C") -> °F
B20: Modified Unloaded Cost
C21: Steam Distribution Header
C22: Saturated Steam Generated at: | E22: 100 | M22: =IF(ISBLANK(E22),"¬","") ->  | P22: Type of Function | Q22: 1 | R22: 1: pressure 2: temperature | U22: Pressure | W22: Temperature | Y22: Enthalpy | AF22: =IF($Q22=1,IF(Units_Pref=$AF$2,$E22,$E22/Unit_Preference_Pres_SI),IF(Units_Pref=$AF$2,$E22,$E22*9/5+32)) -> 100 | AG22: =IF($Q22=1,IF(Units_Pref=$AG$2,$E22,$E22*Unit_Preference_Pres_SI),IF(Units_Pref=$AG$2,$E22,($E22-32)*5/9)) -> 6.894757293 | AH22: 100 | AI22: 6.894757293
C23: Total Enthalpy: | E23: =IF(Q22=1,hV_p(U23),hV_T(W23))*Unit_Preference_Energy/Unit_Preference_Mass -> 1189.952171 | F23: =IF(Units_Pref=1,"Btu/lb","kJ/kg") -> Btu/lb | U23: =IF(Q22=1,(E22+T36)/Unit_Preference_Pres,psat_t(W23)) -> 114.6959488 | V23: psia | W23: =IF(Q22=2,IF(Units_Pref=1,E22,E22*9/5+32),T_ph(U23,Y23)) -> 337.8714982 | X23: °F | Y23: =E23/Unit_Preference_Energy*Unit_Preference_Mass -> 1189.952171 | Z23: Btu/lb
C25: Condensate Return Header | E25: Mass flow % | G25: Operating Condition | J25: Total Enthalpy | U25: Pressure | W25: Temperature | Y25: Enthalpy
C26: Low Pressure Return: | E26: 20 | F26: % | G26: 10 | I26: =IF(E26>0,IF(ISBLANK(G26),"¬",""),"") ->  | J26: =IF(E26>0,IF(Q26=1,hL_p(U26),hL_T(W26))*Unit_Preference_Energy/Unit_Preference_Mass,"") -> 207.8216002 | K26: =IF(Units_Pref=1,"Btu/lb","kJ/kg") -> Btu/lb | P26: Type of Function | Q26: 1 | R26: 1: pressure 2: temperature | U26: =IF(Q26=1,(G26+$T$36)/Unit_Preference_Pres,psat_t(W26)) -> 24.69594878 | V26: psia | W26: =IF(Q26=2,IF(Units_Pref=1,G26,G26*9/5+32),T_ph(U26,Y26)) -> 239.3706825 | X26: °F | Y26: =J26/Unit_Preference_Energy*Unit_Preference_Mass -> 207.8216002 | Z26: Btu/lb | AF26: =IF($Q26=1,IF(Units_Pref=$AF$2,$G26,$G26/Unit_Preference_Pres_SI),IF(Units_Pref=$AF$2,$G26,$G26*9/5+32)) -> 10 | AG26: =IF($Q26=1,IF(Units_Pref=$AG$2,$G26,$G26*Unit_Preference_Pres_SI),IF(Units_Pref=$AG$2,$G26,($G26-32)*5/9)) -> 0.6894757293 | AH26: 10 | AI26: 0.6894757293
C27: Medium Pressure Return: | E27: 0 | F27: % | G27: 14.31159877 | I27: =IF(E27>0,IF(ISBLANK(G27),"¬",""),"") ->  | J27: =IF(E27>0,IF(Q27=1,hL_p(U27),hL_T(W27))*Unit_Preference_Energy/Unit_Preference_Mass,"") ->  | K27: Btu/lb | P27: Type of Function | Q27: 1 | R27: 1: pressure 2: temperature | U27: =IF(Q27=1,(G27+$T$36)/Unit_Preference_Pres,psat_t(W27)) -> 29.00754755 | V27: psia | W27: =IF(Q27=2,IF(Units_Pref=1,G27,G27*9/5+32),"") ->  | X27: °F | Y27: =J27/Unit_Preference_Energy*Unit_Preference_Mass ->  | Z27: Btu/lb | AF27: =IF($Q27=1,IF(Units_Pref=$AF$2,$G27,$G27/Unit_Preference_Pres_SI),IF(Units_Pref=$AF$2,$G27,$G27*9/5+32)) -> 14.31159877 | AG27: =IF($Q27=1,IF(Units_Pref=$AG$2,$G27,$G27*Unit_Preference_Pres_SI),IF(Units_Pref=$AG$2,$G27,($G27-32)*5/9)) -> 0.9867499997 | AH27: 14.31159877 | AI27: 0.9867499997
C28: High Pressure Return: | E28: 0 | F28: % | G28: 0 | I28: =IF(E28>0,IF(ISBLANK(G28),"¬",""),"") ->  | J28: =IF(E28>0,IF(Q28=1,hL_p(U28),hL_T(W28))*Unit_Preference_Energy/Unit_Preference_Mass,"") ->  | K28: Btu/lb | P28: Type of Function | Q28: 1 | R28: 1: pressure 2: temperature | U28: =IF(Q28=1,(G28+$T$36)/Unit_Preference_Pres,psat_t(W28)) -> 14.69594878 | V28: psia | W28: =IF(Q28=2,IF(Units_Pref=1,G28,G28*9/5+32),"") ->  | X28: °F | Y28: =J28/Unit_Preference_Energy*Unit_Preference_Mass ->  | Z28: Btu/lb | AF28: =IF($Q28=1,IF(Units_Pref=$AF$2,$G28,$G28/Unit_Preference_Pres_SI),IF(Units_Pref=$AF$2,$G28,$G28*9/5+32)) -> 0 | AG28: =IF($Q28=1,IF(Units_Pref=$AG$2,$G28,$G28*Unit_Preference_Pres_SI),IF(Units_Pref=$AG$2,$G28,($G28-32)*5/9)) -> 0 | AH28: 0 | AI28: 0
C29: Condensate Return: | E29: 60 | F29: % | G29: 0 | I29: =IF(E29>0,IF(ISBLANK(G29),"¬",""),"") ->  | J29: =IF(E29>0,IF(Q29=1,hL_p(U29),hL_T(W29))*Unit_Preference_Energy/Unit_Preference_Mass,"") -> 180.1335846 | K29: Btu/lb | P29: Type of Function | Q29: 1 | R29: 1: pressure 2: temperature | U29: =IF(Q29=1,(G29+$T$36)/Unit_Preference_Pres,psat_t(W29)) -> 14.69594878 | V29: psia | W29: =IF(Q29=2,IF(Units_Pref=1,G29,G29*9/5+32),"") ->  | X29: °F | Y29: =J29/Unit_Preference_Energy*Unit_Preference_Mass -> 180.1335846 | Z29: Btu/lb | AF29: =IF($Q29=1,IF(Units_Pref=$AF$2,$G29,$G29/Unit_Preference_Pres_SI),IF(Units_Pref=$AF$2,$G29,$G29*9/5+32)) -> 0 | AG29: =IF($Q29=1,IF(Units_Pref=$AG$2,$G29,$G29*Unit_Preference_Pres_SI),IF(Units_Pref=$AG$2,$G29,($G29-32)*5/9)) -> 0 | AH29: 0 | AI29: 0
C30: Make-up Water: | E30: 20 | F30: % | G30: 60 | I30: =IF(E30>0,IF(ISBLANK(G30),"¬",""),"") ->  | J30: =IF(E30>0,IF(Q30=1,hL_p(U30),hL_T(W30))*Unit_Preference_Energy/Unit_Preference_Mass,"") -> 28.0786825 | K30: Btu/lb | P30: Type of Function | Q30: 2 | R30: 1: pressure 2: temperature | U30: =IF(Q30=1,(G30+$T$36)/Unit_Preference_Pres,psat_t(W30)) -> 0.2563896243 | V30: psia | W30: =IF(Q30=2,IF(Units_Pref=1,G30,G30*9/5+32),"") -> 60 | X30: °F | Y30: =J30/Unit_Preference_Energy*Unit_Preference_Mass -> 28.0786825 | Z30: Btu/lb | AF30: =IF($Q30=1,IF(Units_Pref=$AF$2,$G30,$G30/Unit_Preference_Pres_SI),IF(Units_Pref=$AF$2,$G30,$G30*9/5+32)) -> 60 | AG30: =IF($Q30=1,IF(Units_Pref=$AG$2,$G30,$G30*Unit_Preference_Pres_SI),IF(Units_Pref=$AG$2,$G30,($G30-32)*5/9)) -> 15.55555556 | AH30: 60 | AI30: 15.55555556
E31: =SUM(E26:E30) -> 100 | F31: % | J31: =SUMPRODUCT(E26:E30,J26:J30)/100 -> 155.2602073 | K31: Btu/lb
E32: =IF(E31=100,"","↑ Please ensure the total add up is equal to 100%!") -> 
C33: Cost of Steam Calculated: | E33: =$E$5*(E23-J31)/1000/($E$6/100) -> 10.34691964 | F33: =IF(Units_Pref=1,"per 1,000 lbs of steam","per tonne of steam") -> per 1,000 lbs of steam | AB33: Inlet / Outlet Steam | AC33: Enthalpy | AD33: Pressure | AE33: Temperature
AB34: Superheated | AC34: =J39 -> 1217.054537 | AD34: =IF(U39=0,"",U39) -> 314.6959488 | AE34: =IF(ISERR(W39),"",W39) -> 439.7795087
AB35: High Pressure | AC35: =J38 -> 1203.766494 | AD35: =IF(U38=0,"",U38) -> 314.6959488 | AE35: =IF(ISERR(W38),"",W38) -> 421.7795087
B36: Loaded Cost | L36: To Process Users | P36: Minimum Pressure | Q36: =IF(Units_Pref=1,14.7,1.01) -> 14.7 | S36: Atmospheric Pressure | T36: =14.69594878*Unit_Preference_Pres -> 14.69594878 | AB36: =IF(ISBLANK(G40),"","Medium Pressure") -> Medium Pressure | AC36: =J40 -> 1179.273637 | AD36: =IF(U40=0,"",U40) -> 64.69594878 | AE36: =IF(ISERR(W40),"",W40) -> 297.6348566
C37: Steam Distribution Header | G37: Operating Condition | J37: Total Enthalpy | L37: =IF(Units_Pref=1,"Steam Flow (klb/h)","Steam Flow (ton/h)") -> Steam Flow (klb/h) | U37: Pressure | W37: Temperature | Y37: Enthalpy | AB37: =IF(ISBLANK(G41),"","Low Pressure") -> Low Pressure | AC37: =J41 -> 1160.309191 | AD37: =IF(U41=0,"",U41) -> 24.69594878 | AE37: =IF(ISERR(W41),"",W41) -> 239.3544679
C38: High Pressure Saturated Steam: | G38: 300 | I38: =IF(ISBLANK(G38),"← Entry Req.","") ->  | J38: =IF(ISBLANK(G38),0,IF(Q38=1,hV_p(U38),hV_T(W38))*Unit_Preference_Energy/Unit_Preference_Mass) -> 1203.766494 | K38: =IF(Units_Pref=1,"Btu/lb","kJ/kg") -> Btu/lb | L38: 22.04622622 | M38: =IF(AND(G38>0,ISBLANK(L38)),"¬","") ->  | P38: Type of Function | Q38: 1 | R38: 1: pressure 2: temperature | U38: =IF(Q38=1,(G38+T36)/Unit_Preference_Pres,psat_t(W38)) -> 314.6959488 | V38: psia | W38: =IF(Q38=2,IF(Units_Pref=1,G38,G38*9/5+32),T_ph(U38,Y38)) -> 421.7795087 | X38: °F | Y38: =J38/Unit_Preference_Energy*Unit_Preference_Mass -> 1203.766494 | Z38: Btu/lb | AB38: =IF(OR(ISBLANK(G47),E47=0),"","Condensate") -> Condensate | AC38: =J47 -> 180.1335846 | AD38: =IF(U47=0,"",U47) -> 14.69594878 | AE38: =IF(ISERR(W47),"",W47) -> 211.9567478 | AF38: =IF($Q38=1,IF(Units_Pref=$AF$2,$G38,$G38/Unit_Preference_Pres_SI),IF(Units_Pref=$AF$2,$G38,$G38*9/5+32)) -> 300 | AG38: =IF($Q38=1,IF(Units_Pref=$AG$2,$G38,$G38*Unit_Preference_Pres_SI),IF(Units_Pref=$AG$2,$G38,($G38-32)*5/9)) -> 20.68427188 | AH38: 300 | AI38: 20.68427188 | AK38: =IF(Units_Pref=$AF$2,$L38,$L38/Unit_Preference_Mass_SI) -> 22.04622622 | AL38: =IF(Units_Pref=$AG$2,$L38,$L38*Unit_Preference_Mass_SI) -> 10 | AM38: 22.04622622 | AN38: 10
C39: Degree of Superheat: | F39: leave blank if N/A >> | G39: 18 | H39: =IF(Units_Pref=1," °F"," °C") -> °F | J39: =IF(ISBLANK(G38),0,IF(OR(ISBLANK(G39),G39<=0),J38,h_pt(U39,W39)*Unit_Preference_Energy/Unit_Preference_Mass)) -> 1217.054537 | K39: =IF(Units_Pref=1,"Btu/lb","kJ/kg") -> Btu/lb | P39: Temperature | Q39: =IF(Units_Pref=1,G39,G39*9/5+32) -> 18 | R39: °F | S39: °F as basis | U39: =IF(Q38=1,(U38),psat_t(W38)) -> 314.6959488 | V39: psia | W39: =W38+IF(Units_Pref=1,G39,(G39*9/5)) -> 439.7795087 | X39: °F | Y39: =J39/Unit_Preference_Energy*Unit_Preference_Mass -> 1217.054537 | Z39: Btu/lb | AF39: =IF(Units_Pref=$AF$2,$G39,$G39*9/5) -> 18 | AG39: =IF($Q39=1,IF(Units_Pref=$AG$2,$G39,$G39*Unit_Preference_Pres_SI),IF(Units_Pref=$AG$2,$G39,$G39*5/9)) -> 10 | AH39: 18 | AI39: 10
C40: Medium Pressure Saturated Steam: | F40: =IF(I40="","leave blank if N/A >>","") -> leave blank if N/A >> | G40: 50 | I40: =IF(AND(E45>0,ISBLANK(G40)),"← Entry Req.","") ->  | J40: =IF(ISBLANK(G40),0,IF(Q40=1,hV_p(U40),hV_T(W40))*Unit_Preference_Energy/Unit_Preference_Mass) -> 1179.273637 | K40: =IF(Units_Pref=1,"Btu/lb","kJ/kg") -> Btu/lb | L40: 132.2773573 | M40: =IF(AND(G40>0,ISBLANK(L40)),"¬","") ->  | P40: Type of Function | Q40: 1 | R40: 1: pressure 2: temperature | U40: =IF(Q40=1,(G40+T36)/Unit_Preference_Pres,psat_t(W40)) -> 64.69594878 | V40: psia | W40: =IF(Q40=2,IF(Units_Pref=1,G40,G40*9/5+32),T_ph(U40,Y40)) -> 297.6348566 | X40: °F | Y40: =J40/Unit_Preference_Energy*Unit_Preference_Mass -> 1179.273637 | Z40: Btu/lb | AF40: =IF($Q40=1,IF(Units_Pref=$AF$2,$G40,$G40/Unit_Preference_Pres_SI),IF(Units_Pref=$AF$2,$G40,$G40*9/5+32)) -> 50 | AG40: =IF($Q40=1,IF(Units_Pref=$AG$2,$G40,$G40*Unit_Preference_Pres_SI),IF(Units_Pref=$AG$2,$G40,($G40-32)*5/9)) -> 3.447378647 | AH40: 50 | AI40: 3.447378647 | AK40: =IF(Units_Pref=$AF$2,$L40,$L40/Unit_Preference_Mass_SI) -> 132.2773573 | AL40: =IF(Units_Pref=$AG$2,$L40,$L40*Unit_Preference_Mass_SI) -> 60 | AM40: 132.2773573 | AN40: 60
C41: Low Pressure Saturated Steam: | F41: =IF(I41="","leave blank if N/A >>","") -> leave blank if N/A >> | G41: 10 | I41: =IF(AND(E44>0,ISBLANK(G41)),"← Entry Req.","") ->  | J41: =IF(ISBLANK(G41),0,IF(Q41=1,hV_p(U41),hV_T(W41))*Unit_Preference_Energy/Unit_Preference_Mass) -> 1160.309191 | K41: =IF(Units_Pref=1,"Btu/lb","kJ/kg") -> Btu/lb | L41: 99.20801798 | M41: =IF(AND(G41>0,ISBLANK(L41)),"¬","") ->  | P41: Type of Function | Q41: 1 | R41: 1: pressure 2: temperature | U41: =IF(Q41=1,(G41+T36)/Unit_Preference_Pres,psat_t(W41)) -> 24.69594878 | V41: psia | W41: =IF(Q41=2,IF(Units_Pref=1,G41,G41*9/5+32),T_ph(U41,Y41)) -> 239.3544679 | X41: °F | Y41: =J41/Unit_Preference_Energy*Unit_Preference_Mass -> 1160.309191 | Z41: Btu/lb | AF41: =IF($Q41=1,IF(Units_Pref=$AF$2,$G41,$G41/Unit_Preference_Pres_SI),IF(Units_Pref=$AF$2,$G41,$G41*9/5+32)) -> 10 | AG41: =IF($Q41=1,IF(Units_Pref=$AG$2,$G41,$G41*Unit_Preference_Pres_SI),IF(Units_Pref=$AG$2,$G41,($G41-32)*5/9)) -> 0.6894757293 | AH41: 10 | AI41: 0.6894757293 | AK41: =IF(Units_Pref=$AF$2,$L41,$L41/Unit_Preference_Mass_SI) -> 99.20801798 | AL41: =IF(Units_Pref=$AG$2,$L41,$L41*Unit_Preference_Mass_SI) -> 45 | AM41: 99.20801798 | AN41: 45
C43: Condensate Return Header | E43: Mass flow % | G43: Operating Condition | J43: Total Enthalpy | U43: Pressure | W43: Temperature | Y43: Enthalpy
C44: Low Pressure Return: | E44: 20 | F44: % | G44: 169.6941531 | I44: =IF(E44>0,IF(OR(ISBLANK(G44)),"¬",""),"") ->  | J44: =IF(E44>0,IF(Q44=1,hL_p(U44),hL_T(W44))*Unit_Preference_Energy/Unit_Preference_Mass,"") -> 348.3220042 | K44: =IF(Units_Pref=1,"Btu/lb","kJ/kg") -> Btu/lb | P44: Type of Function | Q44: 1 | R44: 1: pressure 2: temperature | U44: =IF(Q44=1,(G44+$T$36)/Unit_Preference_Pres,psat_t(W44)) -> 184.3901019 | V44: psia | W44: =IF(Q44=2,IF(Units_Pref=1,G44,G44*9/5+32),T_ph(U44,Y44)) -> 375.0865731 | X44: °F | Y44: =J44/Unit_Preference_Energy*Unit_Preference_Mass -> 348.3220042 | Z44: Btu/lb | AF44: =IF($Q44=1,IF(Units_Pref=$AF$2,$G44,$G44/Unit_Preference_Pres_SI),IF(Units_Pref=$AF$2,$G44,$G44*9/5+32)) -> 169.6941531 | AG44: =IF($Q44=1,IF(Units_Pref=$AG$2,$G44,$G44*Unit_Preference_Pres_SI),IF(Units_Pref=$AG$2,$G44,($G44-32)*5/9)) -> 11.7 | AH44: 169.6941531 | AI44: 11.7
C45: Medium Pressure Return: | E45: 0 | F45: % | G45: 20 | I45: =IF(E45>0,IF(OR(ISBLANK(G45)),"¬",""),"") ->  | J45: =IF(E45>0,IF(Q45=1,hL_p(U45),hL_T(W45))*Unit_Preference_Energy/Unit_Preference_Mass,"") ->  | K45: Btu/lb | P45: Type of Function | Q45: 1 | R45: 1: pressure 2: temperature | U45: =IF(Q45=1,(G45+$T$36)/Unit_Preference_Pres,psat_t(W45)) -> 34.69594878 | V45: psia | W45: =IF(Q45=2,IF(Units_Pref=1,G45,G45*9/5+32),T_ph(U45,Y45)) ->  | X45: °F | Y45: =J45/Unit_Preference_Energy*Unit_Preference_Mass ->  | Z45: Btu/lb | AF45: =IF($Q45=1,IF(Units_Pref=$AF$2,$G45,$G45/Unit_Preference_Pres_SI),IF(Units_Pref=$AF$2,$G45,$G45*9/5+32)) -> 20 | AG45: =IF($Q45=1,IF(Units_Pref=$AG$2,$G45,$G45*Unit_Preference_Pres_SI),IF(Units_Pref=$AG$2,$G45,($G45-32)*5/9)) -> 1.378951459 | AH45: 20 | AI45: 1.378951459
C46: High Pressure Return: | E46: 0 | F46: % | G46: 200 | I46: =IF(E46>0,IF(OR(ISBLANK(G46)),"¬",""),"") ->  | J46: =IF(E46>0,IF(Q46=1,hL_p(U46),hL_T(W46))*Unit_Preference_Energy/Unit_Preference_Mass,"") ->  | K46: Btu/lb | P46: Type of Function | Q46: 1 | R46: 1: pressure 2: temperature | U46: =IF(Q46=1,(G46+$T$36)/Unit_Preference_Pres,psat_t(W46)) -> 214.6959488 | V46: psia | W46: =IF(Q46=2,IF(Units_Pref=1,G46,G46*9/5+32),T_ph(U46,Y46)) ->  | X46: °F | Y46: =J46/Unit_Preference_Energy*Unit_Preference_Mass ->  | Z46: Btu/lb | AF46: =IF($Q46=1,IF(Units_Pref=$AF$2,$G46,$G46/Unit_Preference_Pres_SI),IF(Units_Pref=$AF$2,$G46,$G46*9/5+32)) -> 200 | AG46: =IF($Q46=1,IF(Units_Pref=$AG$2,$G46,$G46*Unit_Preference_Pres_SI),IF(Units_Pref=$AG$2,$G46,($G46-32)*5/9)) -> 13.78951459 | AH46: 200 | AI46: 13.78951459
C47: Condensate Return: | E47: 60 | F47: % | G47: 0 | I47: =IF(E47>0,IF(OR(ISBLANK(G47)),"¬",""),"") ->  | J47: =IF(E47>0,IF(Q47=1,hL_p(U47),hL_T(W47))*Unit_Preference_Energy/Unit_Preference_Mass,"") -> 180.1335846 | K47: Btu/lb | P47: Type of Function | Q47: 1 | R47: 1: pressure 2: temperature | U47: =IF(Q47=1,(G47+$T$36)/Unit_Preference_Pres,psat_t(W47)) -> 14.69594878 | V47: psia | W47: =IF(Q47=2,IF(Units_Pref=1,G47,G47*9/5+32),T_ph(U47,Y47)) -> 211.9567478 | X47: °F | Y47: =J47/Unit_Preference_Energy*Unit_Preference_Mass -> 180.1335846 | Z47: Btu/lb | AF47: =IF($Q47=1,IF(Units_Pref=$AF$2,$G47,$G47/Unit_Preference_Pres_SI),IF(Units_Pref=$AF$2,$G47,$G47*9/5+32)) -> 0 | AG47: =IF($Q47=1,IF(Units_Pref=$AG$2,$G47,$G47*Unit_Preference_Pres_SI),IF(Units_Pref=$AG$2,$G47,($G47-32)*5/9)) -> 0 | AH47: 0 | AI47: 0
C48: Make-up Water: | D48: =IF(E48<=0,"Entry Req. >>","") ->  | E48: 20 | F48: % | G48: 75.2 | I48: =IF(E48>0,IF(OR(ISBLANK(G48)),"¬",""),"") ->  | J48: =IF(E48>0,IF(Q48=1,hL_p(U48),hL_T(W48))*Unit_Preference_Energy/Unit_Preference_Mass,"") -> 43.27420125 | K48: Btu/lb | P48: Type of Function | Q48: 2 | R48: 1: pressure 2: temperature | U48: =IF(Q48=1,(G48+$T$36)/Unit_Preference_Pres,psat_t(W48)) -> 0.4330294658 | V48: psia | W48: =IF(Q48=2,IF(Units_Pref=1,G48,G48*9/5+32),T_ph(U48,Y48)) -> 75.2 | X48: °F | Y48: =J48/Unit_Preference_Energy*Unit_Preference_Mass -> 43.27420125 | Z48: Btu/lb | AF48: =IF($Q48=1,IF(Units_Pref=$AF$2,$G48,$G48/Unit_Preference_Pres_SI),IF(Units_Pref=$AF$2,$G48,$G48*9/5+32)) -> 75.2 | AG48: =IF($Q48=1,IF(Units_Pref=$AG$2,$G48,$G48*Unit_Preference_Pres_SI),IF(Units_Pref=$AG$2,$G48,($G48-32)*5/9)) -> 24 | AH48: 75.2 | AI48: 24
C49: =IF(E48<E77," ↑ Error. Makeup must be ≥ blowdown. (min: " & ROUND(E77,1) & "%)","") ->  | E49: =SUM(E44:E48) -> 100 | F49: % | J49: =SUMPRODUCT(E44:E48,J44:J48)/100 -> 186.3993919 | K49: Btu/lb
E50: =IF(E49=100,"","↑ Please ensure the total add up is equal to 100%!") ->  | R50: =K47 -> Btu/lb | S50: =V50&U50 -> btu/lb°F | T50: psia | U50: °F | V50: btu/lb
C51: Turbine Data | E51: Steam | G51: =IF(Units_Pref=1,"psia","bara") -> psia | H51: =IF(Units_Pref=1,"°F","°C") -> °F | I51: =IF(Units_Pref=1,"Flow, klb/h","Flow, ton/h") -> Flow, klb/h | J51: Total Enthalpy | L51: Efficiency, % | Q51: Inlet | R51: Enthalpy | S51: Entropy | T51: Pressure | U51: Temp | V51: Enthalpy | W51: =IF(Units_Pref=1,"Btu","kJ") & "/s" -> Btu/s | X51: Mode | Z51: Mode | AB51: For dehighlighting cells
C52: HP - MP Steam Turbine(s): | D52: Inlet: | E52: =IF($G$39>0,"Superheated Steam","High Pressure") -> Superheated Steam | G52: =VLOOKUP(CHOOSE($Q52,$AB$34,$AB$35,$AB$36,$AB$37,$AB$38),$AB$34:$AE$38,3,FALSE)*Unit_Preference_Pres -> 314.6959488 | H52: =IF(Units_Pref=1,VLOOKUP(CHOOSE($Q52,$AB$34,$AB$35,$AB$36,$AB$37,$AB$38),$AB$34:$AE$38,4,FALSE),(VLOOKUP(CHOOSE($Q52,$AB$34,$AB$35,$AB$36,$AB$37,$AB$38),$AB$34:$AE$38,4,FALSE)-32)*5/9) -> 439.7795087 | I52: 33.06933933 | J52: =R52 -> 1217.054537 | K52: =IF(Units_Pref=1,"Btu/lb","kJ/kg") -> Btu/lb | L52: 80 | M52: =IF(Q52=1,"Superheated","Saturated") -> Superheated | P52: Steam Type Inlet | Q52: =IF($G$39>0,1,2) -> 1 | R52: =IF(Q52<>5,VLOOKUP(CHOOSE(Q52,$AB$34,$AB$35,$AB$36,$AB$37,$AB$38),$AB$34:$AC$38,2,FALSE),IF(ISBLANK(H52),hV_p(T52),h_pt(T52,U52))*Unit_Preference_Energy/Unit_Preference_Mass) -> 1217.054537 | S52: =s_ph(T52,V52) -> 1.521827754 | T52: =IF(Q52<>5,VLOOKUP(CHOOSE(Q52,$AB$34,$AB$35,$AB$36,$AB$37,$AB$38),$AB$34:$AE$38,3,FALSE),G52/Unit_Preference_Pres) -> 314.6959488 | U52: =IF(Q52<>5,VLOOKUP(CHOOSE(Q52,$AB$34,$AB$35,$AB$36,$AB$37,$AB$38),$AB$34:$AE$38,4,FALSE),IF(ISBLANK(H52),T_ph(T52,V52),IF(Units_Pref=1,H52,H52*9/5+32))) -> 439.7795087 | V52: =R52/Unit_Preference_Energy*Unit_Preference_Mass -> 1217.054537 | X52: 1 | Y52: 1: | Z52: =IF(I52=0,"No flow","In Operation") -> In Operation | AB52: =IF(OR(X52=2,ISERR(B52:M54)),2,1) -> 1 | AF52: =IF(Units_Pref=$AF$2,$I52,$I52/Unit_Preference_Mass_SI) -> 33.06933933 | AG52: =IF(Units_Pref=$AG$2,$I52,$I52*Unit_Preference_Mass_SI) -> 15 | AH52: 33.06933933 | AI52: 15
D53: Outlet: | E53: Medium Pressure | G53: =VLOOKUP(CHOOSE($Q53,$AB$34,$AB$35,$AB$36,$AB$37,$AB$38),$AB$34:$AE$38,3,FALSE)*Unit_Preference_Pres -> 64.69594878 | H53: =IF(Units_Pref=1,VLOOKUP(CHOOSE($Q53,$AB$34,$AB$35,$AB$36,$AB$37,$AB$38),$AB$34:$AE$38,4,FALSE),(VLOOKUP(CHOOSE($Q53,$AB$34,$AB$35,$AB$36,$AB$37,$AB$38),$AB$34:$AE$38,4,FALSE)-32)*5/9) -> 297.6348566 | J53: =IF(V53="","",V53*Unit_Preference_Energy/Unit_Preference_Mass) -> 1091.12708 | K53: Btu/lb | M53: =IF((U53-Tsat_p(T53))>0,"Superheated",IF((U53-Tsat_p(T53))<0,"Subcooled","Saturated")) -> Subcooled | P53: Steam Type Outlet | Q53: 3 | R53: =IF(Q53<>5,VLOOKUP(CHOOSE(Q53,$AB$34,$AB$35,$AB$36,$AB$37,$AB$38),$AB$34:$AC$38,2,FALSE),(IF(ISBLANK(H53),hV_p(T53),h_ps(T53,S53)))*Unit_Preference_Energy/Unit_Preference_Mass) -> 1179.273637 | S53: =S52 -> 1.521827754 | T53: =IF(Q53<>5,VLOOKUP(CHOOSE(Q53,$AB$34,$AB$35,$AB$36,$AB$37,$AB$38),$AB$34:$AE$38,3,FALSE),G53/Unit_Preference_Pres) -> 64.69594878 | U53: =IF(Q53<>5,VLOOKUP(CHOOSE(Q53,$AB$34,$AB$35,$AB$36,$AB$37,$AB$38),$AB$34:$AE$38,4,FALSE),IF(ISBLANK(H53),T_ph(T53,V53),IF(Units_Pref=1,H53,H53*9/5+32))) -> 297.6348566 | V53: =IF(ISERR(h_ps(T53,S53)),"",h_ps(T53,S53)) -> 1091.12708 | W53: =X53*I52*1000/3600 -> 925.4083994 | X53: =IF(ISERR(E54),0,IF(X52=1,1,0)*IF(E54="",0,E54)) -> 100.7419654 | Y53: 2: | Z53: =IF(I52=0,"No flow","Off Operation") -> Off Operation
D54: Shaft Work: | E54: =IF(I52=0,0,IF(OR(V53>V52,J53>J52,H53=""),"",(V52-V53)*Unit_Preference_Energy/Unit_Preference_Mass*L52/100)) -> 100.7419654 | F54: =IF(Units_Pref=1,"Btu/lb","kJ/kg") -> Btu/lb | J54: =IF(ISBLANK(G40),"",IF(OR(ISERR(J52),ISERR(J53)),"Invalid Entry",IF(J53<J52,"","↑ Invalid. Outlet Enthalpy > Inlet Enthalpy"))) -> 
C55: HP - LP Steam Turbine(s): | D55: Inlet: | E55: =IF($G$39>0,"Superheated Steam","High Pressure") -> Superheated Steam | G55: =VLOOKUP(CHOOSE($Q55,$AB$34,$AB$35,$AB$36,$AB$37,$AB$38),$AB$34:$AE$38,3,FALSE)*Unit_Preference_Pres -> 314.6959488 | H55: =IF(Units_Pref=1,VLOOKUP(CHOOSE($Q55,$AB$34,$AB$35,$AB$36,$AB$37,$AB$38),$AB$34:$AE$38,4,FALSE),(VLOOKUP(CHOOSE($Q55,$AB$34,$AB$35,$AB$36,$AB$37,$AB$38),$AB$34:$AE$38,4,FALSE)-32)*5/9) -> 439.7795087 | I55: 44.09245244 | J55: =R55 -> 1217.054537 | K55: Btu/lb | L55: 80 | M55: =IF(Q55=1,"Superheated","Saturated") -> Superheated | P55: Steam Type Inlet | Q55: =IF($G$39>0,1,2) -> 1 | R55: =IF(Q55<>5,VLOOKUP(CHOOSE(Q55,$AB$34,$AB$35,$AB$36,$AB$37,$AB$38),$AB$34:$AC$38,2,FALSE),IF(ISBLANK(H55),hV_p(T55),h_pt(T55,U55))*Unit_Preference_Energy/Unit_Preference_Mass) -> 1217.054537 | S55: =s_ph(T55,V55) -> 1.521827754 | T55: =IF(Q55<>5,VLOOKUP(CHOOSE(Q55,$AB$34,$AB$35,$AB$36,$AB$37,$AB$38),$AB$34:$AE$38,3,FALSE),G55/Unit_Preference_Pres) -> 314.6959488 | U55: =IF(Q55<>5,VLOOKUP(CHOOSE(Q55,$AB$34,$AB$35,$AB$36,$AB$37,$AB$38),$AB$34:$AE$38,4,FALSE),IF(ISBLANK(H55),T_ph(T55,V55),IF(Units_Pref=1,H55,H55*9/5+32))) -> 439.7795087 | V55: =R55/Unit_Preference_Energy*Unit_Preference_Mass -> 1217.054537 | X55: 1 | Y55: 1: | Z55: =IF(I55=0,"No flow","In Operation") -> In Operation | AB55: =IF(OR(X55=2,ISERR(B55:M57)),2,1) -> 1 | AF55: =IF(Units_Pref=$AF$2,$I55,$I55/Unit_Preference_Mass_SI) -> 44.09245244 | AG55: =IF(Units_Pref=$AG$2,$I55,$I55*Unit_Preference_Mass_SI) -> 20 | AH55: 44.09245244 | AI55: 20
D56: Outlet: | E56: Low Pressure | G56: =VLOOKUP(CHOOSE($Q56,$AB$34,$AB$35,$AB$36,$AB$37,$AB$38),$AB$34:$AE$38,3,FALSE)*Unit_Preference_Pres -> 24.69594878 | H56: =IF(Units_Pref=1,VLOOKUP(CHOOSE($Q56,$AB$34,$AB$35,$AB$36,$AB$37,$AB$38),$AB$34:$AE$38,4,FALSE),(VLOOKUP(CHOOSE($Q56,$AB$34,$AB$35,$AB$36,$AB$37,$AB$38),$AB$34:$AE$38,4,FALSE)-32)*5/9) -> 239.3544679 | J56: =IF(V56="","",V56*Unit_Preference_Energy/Unit_Preference_Mass) -> 1025.239718 | K56: Btu/lb | M56: =IF(U56-(T_ph(T56,V56))>0,"Superheated",IF(U56-(T_ph(T56,V56))<0,"Subcooled","Saturated")) -> Subcooled | P56: Steam Type Outlet | Q56: 4 | R56: =IF(Q56<>5,VLOOKUP(CHOOSE(Q56,$AB$34,$AB$35,$AB$36,$AB$37,$AB$38),$AB$34:$AC$38,2,FALSE),(IF(ISBLANK(H56),hV_p(T56),h_ps(T56,S56)))*Unit_Preference_Energy/Unit_Preference_Mass) -> 1160.309191 | S56: =S55 -> 1.521827754 | T56: =IF(Q56<>5,VLOOKUP(CHOOSE(Q56,$AB$34,$AB$35,$AB$36,$AB$37,$AB$38),$AB$34:$AE$38,3,FALSE),G56/Unit_Preference_Pres) -> 24.69594878 | U56: =IF(Q56<>5,VLOOKUP(CHOOSE(Q56,$AB$34,$AB$35,$AB$36,$AB$37,$AB$38),$AB$34:$AE$38,4,FALSE),IF(ISBLANK(H56),T_ph(T56,V56),IF(Units_Pref=1,H56,H56*9/5+32))) -> 239.3544679 | V56: =IF(ISERR(h_ps(T56,S56)),"",h_ps(T56,S56)) -> 1025.239718 | W56: =X56*I55*1000/3600 -> 1879.463505 | X56: =IF(ISERR(E57),0,IF(X55=1,1,0)*IF(E57="",0,E57)) -> 153.451855 | Y56: 2: | Z56: =IF(I55=0,"No flow","Off Operation") -> Off Operation
D57: Shaft Work: | E57: =IF(I55=0,0,IF(OR(V56>V55,J56>J55,H56=""),"",(V55-V56)*Unit_Preference_Energy/Unit_Preference_Mass*L55/100)) -> 153.451855 | F57: =IF(Units_Pref=1,"Btu/lb","kJ/kg") -> Btu/lb | J57: =IF(ISBLANK(G41),"",IF(OR(ISERR(J55),ISERR(J56)),"Invalid Entry",IF(J56<J55,"","↑ Invalid. Outlet Enthalpy > Inlet Enthalpy"))) -> 
C58: MP - LP Steam Turbine(s): | D58: Inlet: | E58: Medium Pressure | G58: =VLOOKUP(CHOOSE($Q58,$AB$34,$AB$35,$AB$36,$AB$37,$AB$38),$AB$34:$AE$38,3,FALSE)*Unit_Preference_Pres -> 64.69594878 | H58: =IF(Units_Pref=1,VLOOKUP(CHOOSE($Q58,$AB$34,$AB$35,$AB$36,$AB$37,$AB$38),$AB$34:$AE$38,4,FALSE),(VLOOKUP(CHOOSE($Q58,$AB$34,$AB$35,$AB$36,$AB$37,$AB$38),$AB$34:$AE$38,4,FALSE)-32)*5/9) -> 297.6348566 | I58: 22.04622622 | J58: =R58 -> 1179.273637 | K58: Btu/lb | L58: 80 | M58: =IF(Q58=1,"Superheated","Saturated") -> Saturated | P58: Steam Type Inlet | Q58: 3 | R58: =IF(Q58<>5,VLOOKUP(CHOOSE(Q58,$AB$34,$AB$35,$AB$36,$AB$37,$AB$38),$AB$34:$AC$38,2,FALSE),IF(ISBLANK(H58),hV_p(T58),h_pt(T58,U58))*Unit_Preference_Energy/Unit_Preference_Mass) -> 1179.273637 | S58: =s_ph(T58,V58) -> 1.63820784 | T58: =IF(Q58<>5,VLOOKUP(CHOOSE(Q58,$AB$34,$AB$35,$AB$36,$AB$37,$AB$38),$AB$34:$AE$38,3,FALSE),G58/Unit_Preference_Pres) -> 64.69594878 | U58: =IF(Q58<>5,VLOOKUP(CHOOSE(Q58,$AB$34,$AB$35,$AB$36,$AB$37,$AB$38),$AB$34:$AE$38,4,FALSE),IF(ISBLANK(H58),T_ph(T58,V58),IF(Units_Pref=1,H58,H58*9/5+32))) -> 297.6348566 | V58: =R58/Unit_Preference_Energy*Unit_Preference_Mass -> 1179.273637 | X58: 2 | Y58: 1: | Z58: =IF(I58=0,"No flow","In Operation") -> In Operation | AB58: =IF(OR(X58=2,ISERR(B58:M60)),2,1) -> 2 | AF58: =IF(Units_Pref=$AF$2,$I58,$I58/Unit_Preference_Mass_SI) -> 22.04622622 | AG58: =IF(Units_Pref=$AG$2,$I58,$I58*Unit_Preference_Mass_SI) -> 10 | AH58: 22.04622622 | AI58: 10
D59: Outlet: | E59: Low Pressure | G59: =VLOOKUP(CHOOSE($Q59,$AB$34,$AB$35,$AB$36,$AB$37,$AB$38),$AB$34:$AE$38,3,FALSE)*Unit_Preference_Pres -> 24.69594878 | H59: =IF(Units_Pref=1,VLOOKUP(CHOOSE($Q59,$AB$34,$AB$35,$AB$36,$AB$37,$AB$38),$AB$34:$AE$38,4,FALSE),(VLOOKUP(CHOOSE($Q59,$AB$34,$AB$35,$AB$36,$AB$37,$AB$38),$AB$34:$AE$38,4,FALSE)-32)*5/9) -> 239.3544679 | J59: =IF(V59="","",V59*Unit_Preference_Energy/Unit_Preference_Mass) -> 1106.592824 | K59: Btu/lb | M59: =IF(U59-(T_ph(T59,V59))>0,"Superheated",IF(U59-(T_ph(T59,V59))<0,"Subcooled","Saturated")) -> Subcooled | P59: Steam Type Outlet | Q59: 4 | R59: =IF(Q59<>5,VLOOKUP(CHOOSE(Q59,$AB$34,$AB$35,$AB$36,$AB$37,$AB$38),$AB$34:$AC$38,2,FALSE),(IF(ISBLANK(H59),hV_p(T59),h_ps(T59,S59)))*Unit_Preference_Energy/Unit_Preference_Mass) -> 1160.309191 | S59: =S58 -> 1.63820784 | T59: =IF(Q59<>5,VLOOKUP(CHOOSE(Q59,$AB$34,$AB$35,$AB$36,$AB$37,$AB$38),$AB$34:$AE$38,3,FALSE),G59/Unit_Preference_Pres) -> 24.69594878 | U59: =IF(Q59<>5,VLOOKUP(CHOOSE(Q59,$AB$34,$AB$35,$AB$36,$AB$37,$AB$38),$AB$34:$AE$38,4,FALSE),IF(ISBLANK(H59),T_ph(T59,V59),IF(Units_Pref=1,H59,H59*9/5+32))) -> 239.3544679 | V59: =IF(ISERR(h_ps(T59,S59)),"",h_ps(T59,S59)) -> 1106.592824 | W59: =X59*I58*1000/3600 -> 0 | X59: =IF(ISERR(E60),0,IF(X58=1,1,0)*IF(E60="",0,E60)) -> 0 | Y59: 2: | Z59: =IF(I58=0,"No flow","Off Operation") -> Off Operation
D60: Shaft Work: | E60: =IF(I58=0,0,IF(OR(V59>V58,J59>J58,H59=""),"",(V58-V59)*Unit_Preference_Energy/Unit_Preference_Mass*L58/100)) -> 58.14465059 | F60: =IF(Units_Pref=1,"Btu/lb","kJ/kg") -> Btu/lb | J60: =IF(OR(ISBLANK(G40),ISBLANK(G41)),"",IF(OR(ISERR(J58),ISERR(J59)),"Invalid Entry",IF(J59<J58,"","↑ Invalid. Outlet Enthalpy > Inlet Enthalpy"))) -> 
C61: HP - Cond Steam Turbine(s): | D61: Inlet: | E61: =IF($G$39>0,"Superheated Steam","High Pressure") -> Superheated Steam | G61: =VLOOKUP(CHOOSE($Q61,$AB$34,$AB$35,$AB$36,$AB$37,$AB$38),$AB$34:$AE$38,3,FALSE)*Unit_Preference_Pres -> 314.6959488 | H61: =IF(Units_Pref=1,VLOOKUP(CHOOSE($Q61,$AB$34,$AB$35,$AB$36,$AB$37,$AB$38),$AB$34:$AE$38,4,FALSE),(VLOOKUP(CHOOSE($Q61,$AB$34,$AB$35,$AB$36,$AB$37,$AB$38),$AB$34:$AE$38,4,FALSE)-32)*5/9) -> 439.7795087 | I61: 22.04622622 | J61: =R61 -> 1217.054537 | K61: Btu/lb | L61: 80 | M61: =IF(Q61=1,"Superheated","Saturated") -> Superheated | P61: Steam Type Inlet | Q61: =IF($G$39>0,1,2) -> 1 | R61: =IF(Q61<>5,VLOOKUP(CHOOSE(Q61,$AB$34,$AB$35,$AB$36,$AB$37,$AB$38),$AB$34:$AC$38,2,FALSE),IF(ISBLANK(H61),hV_p(T61),h_pt(T61,U61))*Unit_Preference_Energy/Unit_Preference_Mass) -> 1217.054537 | S61: =s_ph(T61,V61) -> 1.521827754 | T61: =IF(Q61<>5,VLOOKUP(CHOOSE(Q61,$AB$34,$AB$35,$AB$36,$AB$37,$AB$38),$AB$34:$AE$38,3,FALSE),G61/Unit_Preference_Pres) -> 314.6959488 | U61: =IF(Q61<>5,VLOOKUP(CHOOSE(Q61,$AB$34,$AB$35,$AB$36,$AB$37,$AB$38),$AB$34:$AE$38,4,FALSE),IF(ISBLANK(H61),T_ph(T61,V61),IF(Units_Pref=1,H61,H61*9/5+32))) -> 439.7795087 | V61: =R61/Unit_Preference_Energy*Unit_Preference_Mass -> 1217.054537 | X61: 2 | Y61: 1: | Z61: =IF(I61=0,"No flow","In Operation") -> In Operation | AB61: =IF(OR(X61=2,ISERR(B61:M63)),2,1) -> 2 | AF61: =IF(Units_Pref=$AF$2,$I61,$I61/Unit_Preference_Mass_SI) -> 22.04622622 | AG61: =IF(Units_Pref=$AG$2,$I61,$I61*Unit_Preference_Mass_SI) -> 10 | AH61: 22.04622622 | AI61: 10
D62: Outlet: | E62: Condensate | G62: =VLOOKUP(CHOOSE($Q62,$AB$34,$AB$35,$AB$36,$AB$37,$AB$38),$AB$34:$AE$38,3,FALSE)*Unit_Preference_Pres -> 14.69594878 | H62: =IF(Units_Pref=1,VLOOKUP(CHOOSE($Q62,$AB$34,$AB$35,$AB$36,$AB$37,$AB$38),$AB$34:$AE$38,4,FALSE),(VLOOKUP(CHOOSE($Q62,$AB$34,$AB$35,$AB$36,$AB$37,$AB$38),$AB$34:$AE$38,4,FALSE)-32)*5/9) -> 211.9567478 | J62: =IF(V62="","",V62*Unit_Preference_Energy/Unit_Preference_Mass) -> 992.6157734 | K62: Btu/lb | M62: =IF(U62-(T_ph(T62,V62))>0,"Superheated",IF(U62-(T_ph(T62,V62))<0,"Subcooled","Saturated")) -> Superheated | P62: Steam Type Outlet | Q62: 5 | R62: =IF(Q62<>5,VLOOKUP(CHOOSE(Q62,$AB$34,$AB$35,$AB$36,$AB$37,$AB$38),$AB$34:$AC$38,2,FALSE),(IF(ISBLANK(H62),hV_p(T62),h_ps(T62,S62)))*Unit_Preference_Energy/Unit_Preference_Mass) -> 992.6157734 | S62: =S61 -> 1.521827754 | T62: =IF(Q62<>5,VLOOKUP(CHOOSE(Q62,$AB$34,$AB$35,$AB$36,$AB$37,$AB$38),$AB$34:$AE$38,3,FALSE),G62/Unit_Preference_Pres) -> 14.69594878 | U62: =IF(Q62<>5,VLOOKUP(CHOOSE(Q62,$AB$34,$AB$35,$AB$36,$AB$37,$AB$38),$AB$34:$AE$38,4,FALSE),IF(ISBLANK(H62),T_ph(T62,V62),IF(Units_Pref=1,H62,H62*9/5+32))) -> 211.9567478 | V62: =IF(ISERR(h_ps(T62,S62)),"",h_ps(T62,S62)) -> 992.6157734 | W62: =X62*I61*1000/3600 -> 0 | X62: =IF(ISERR(E63),0,IF(X61=1,1,0)*IF(E63="",0,E63)) -> 0 | Y62: 2: | Z62: =IF(I61=0,"No flow","Off Operation") -> Off Operation
D63: Shaft Work: | E63: =IF(I61=0,0,IF(OR(V62>V61,J62>J61,H62=""),"",(V61-V62)*Unit_Preference_Energy/Unit_Preference_Mass*L61/100)) -> 179.5510105 | F63: =IF(Units_Pref=1,"Btu/lb","kJ/kg") -> Btu/lb | J63: =IF(OR(ISERR(J61),ISERR(J62)),"Invalid Entry",IF(J62<J61,"","↑ Invalid. Outlet Enthalpy > Inlet Enthalpy")) -> 
W64: =W53+W56+W59+W62 -> 2804.871904
C65: Total Power Generated: | E65: =X53+X56+X59+X62 -> 254.1938204 | F65: =IF(Units_Pref=1,"Btu/lb","kJ/kg") -> Btu/lb | H65: * If multiple turbines are installed, their data should be combined to model as a single turbine for each pass.
C67: General Site Data
C68: Operating Hours Per Year: | E68: 8000 | F68: hrs/year | M68: =IF(ISBLANK(E68),"¬","") ->  | AF68: =E68 -> 8000 | AG68: =AF68 -> 8000 | AH68: 8000 | AI68: 8000
C69: Total Steam Generated: | E69: 264.5547146 | F69: =IF(Units_Pref=1,"klb/h","ton/h") -> klb/h | G69: ="Steam generated from boiler to distribution headers. Minimum: " & ROUNDUP(P107,0) & " " & F69 -> Steam generated from boiler to distribution headers. Minimum: 254 klb/h | AF69: =IF(Units_Pref=$AF$2,$E69,$E69/Unit_Preference_Mass_SI) -> 264.5547146 | AG69: =IF(Units_Pref=$AG$2,$E69,$E69*Unit_Preference_Mass_SI) -> 120 | AH69: 264.5547146 | AI69: 120
C70: Cost of Electrical Power: | E70: 0.06 | F70: US$/kWh | G70: Typical value: US$0.06 per kWh (year 2003) | AF70: =E70 -> 0.06 | AG70: =AF70 -> 0.06 | AH70: 0.06 | AI70: 0.06
C71: Electrical Usage: | E71: 110 | F71: kW | G71: Feedwater Pumping Power + Combustion Air Fan (Blower) Power | U71: Pressure | W71: Temperature | Y71: Enthalpy | AF71: =E71 -> 110 | AG71: =AF71 -> 110 | AH71: 110 | AI71: 110
C72: BFW Operating Condition: | E72: 89.6 | F72: =IF(Units_Pref=1,"°F","°C") -> °F | G72: Temperature of the Boiler Feedwater | P72: Type of Function | Q72: 2 | R72: 1: pressure 2: temperature | U72: =IF(Q72=1,E72/Unit_Preference_Pres,psat_t(W72)) -> 0.6902704358 | V72: psia | W72: =IF(Q72=2,IF(Units_Pref=1,E72,E72*9/5+32),T_ph(U72,Y72)) -> 89.6 | X72: °F | Y72: =IF(Q72=1,hL_p(U72),hL_T(W72)) -> 57.65505193 | Z72: Btu/lb | AF72: =IF($Q72=1,IF(Units_Pref=$AF$2,$E72,$E72/Unit_Preference_Pres_SI),IF(Units_Pref=$AF$2,$E72,$E72*9/5+32)) -> 89.6 | AG72: =IF($Q72=1,IF(Units_Pref=$AG$2,$E72,$E72*Unit_Preference_Pres_SI),IF(Units_Pref=$AG$2,$E72,($E72-32)*5/9)) -> 32 | AH72: 89.6 | AI72: 32
C73: BFW Chemical Treatment Cost: | E73: 0.0680388555 | F73: =IF(Units_Pref=1,"US$/1,000lb","US$/tonne") -> US$/1,000lb | G73: =IF(Units_Pref=1,"Typical value: US$0.07 per 1,000lb of steam (year 2003)", "Typical value: US$0.15 per tonne of steam (year 2003)") -> Typical value: US$0.07 per 1,000lb of steam (year 2003) | AF73: =IF(Units_Pref=$AF$2,$E73,$E73*Unit_Preference_Mass_SI) -> 0.0680388555 | AG73: =IF(Units_Pref=$AG$2,$E73,$E73/Unit_Preference_Mass_SI) -> 0.15 | AH73: 0.0680388555 | AI73: 0.15
C74: Makeup Water Cost: | E74: 0.03 | F74: =IF(Units_Pref=1,"US$/1,000lb","US$/tonne") -> US$/1,000lb | G74: =IF(Units_Pref=1,"Typical value: US$0.03 per 1,000lb of steam (year 2003)", "Typical value: US$0.067 per tonne of steam (year 2003)") -> Typical value: US$0.03 per 1,000lb of steam (year 2003) | P74: Energy in BFW CpdT | Q74: =4.186/Unit_Preference_Energy_SI*Unit_Preference_Mass_SI*5/9*(W72-W48) -> 14.39724849 | R74: Btu/lb | S74: =Q74*Unit_Preference_Energy/Unit_Preference_Mass*1000/10^6 -> 0.01439724849 | T74: =IF(Units_Pref=1,"MMBtu","GJ") & " per 1,000 mass" -> MMBtu per 1,000 mass | AF74: =IF(Units_Pref=$AF$2,$E74,$E74*Unit_Preference_Mass_SI) -> 0.03 | AG74: =IF(Units_Pref=$AG$2,$E74,$E74/Unit_Preference_Mass_SI) -> 0.06613867866 | AH74: 0.03 | AI74: 0.06613867866
C75: Makeup Water Percentage: | E75: =IF(E48<E77,E77,E48) -> 20 | F75: % | G75: Per cent of Feedwater Flow | Q75: 2
C76: Sewer Cost for Boiler Blowdown: | E76: 0.5420127606 | F76: =IF(Units_Pref=1,"US$/100ft³","US$/100m³") -> US$/100ft³ | G76: =IF(Units_Pref=1,"Typical value: US$0.542 per 100 ft³ (year 2003)", "Typical value: US$19.141 per 100 m³ (year 2003)") -> Typical value: US$0.542 per 100 ft³ (year 2003) | Q76: =E76/(62.42796058*Unit_Preference_Mass/Unit_Preference_Length^3)*100 -> 0.8682211554 | R76: =IF(Units_Pref=1,"US$/lb","US$/kg") -> US$/lb | AF76: =IF(Units_Pref=$AF$2,$E76,$E76*Unit_Preference_Length_SI^3) -> 0.5420127606 | AG76: =IF(Units_Pref=$AG$2,$E76,$E76/Unit_Preference_Length_SI^3) -> 19.141 | AH76: 0.5420127606 | AI76: 19.141
C77: Boiler Blowdown Rate: | E77: 5 | F77: % | G77: Per cent of Feedwater Flow. Usually 1 to 3% | AF77: =E77 -> 5 | AG77: =AF77 -> 5 | AH77: 5 | AI77: 5
C78: Waste Disposal Cost: | E78: 0.45359237 | F78: =IF(Units_Pref=1,"US$/1,000lb","US$/tonne") -> US$/1,000lb | G78: =IF(Units_Pref=1,"Typical value: US$0.45 per 1,000lb Ash (year 2003)", "Typical value: US$1 per tonne Ash (year 2003)") -> Typical value: US$0.45 per 1,000lb Ash (year 2003) | R78: =F69 -> klb/h | AF78: =IF(Units_Pref=$AF$2,$E78,$E78*Unit_Preference_Mass_SI) -> 0.45359237 | AG78: =IF(Units_Pref=$AG$2,$E78,$E78/Unit_Preference_Mass_SI) -> 1 | AH78: 0.45359237 | AI78: 1
C79: Total Ash Produced: | E79: 0.05 | F79: =IF(Units_Pref=1,"lb/10,000Btu","kg/10,000kJ") -> lb/10,000Btu | G79: =IF(Units_Pref=1,"Typical value: 0.05 lb per 10,000Btu", "Typical value: 0.02 kg per 10,000kJ") -> Typical value: 0.05 lb per 10,000Btu | P79: Blowdown Mass Flow | Q79: =E77/100*E104 -> 13.22773573 | R79: =F69 -> klb/h | AF79: =IF(Units_Pref=$AF$2,$E79,$E79*Unit_Preference_Energy_SI/Unit_Preference_Mass_SI) -> 0.05 | AG79: =IF(Units_Pref=$AG$2,$E79,$E79/Unit_Preference_Energy_SI*Unit_Preference_Mass_SI) -> 0.02149613069 | AH79: 0.05 | AI79: 0.02149613069
C80: Env. Emission Control Cost: | E80: 12 | F80: US$/tonne CO2 | G80: Typical value: US$12 per tonne CO2 (year 2007) | AF80: =E80 -> 12 | AG80: =AF80 -> 12 | AH80: 12 | AI80: 12
C81: Emission Rate: | E81: 80 | F81: =IF(Units_Pref=1,"kgCO2 / MMBtu","kgCO2 / GJ") -> kgCO2 / MMBtu | G81: =IF(Units_Pref=1,"Typical range of value: 50 to 110 kgCO2 / MMBtu", "Typical range of value: 47 to 104 kgCO2 / GJ") -> Typical range of value: 50 to 110 kgCO2 / MMBtu | AF81: =IF(Units_Pref=$AF$2,$E81,$E81*Unit_Preference_Energy_SI) -> 80 | AG81: =IF(Units_Pref=$AG$2,$E81,$E81/Unit_Preference_Energy_SI) -> 75.8253696 | AH81: 80 | AI81: 75.8253696
C82: Labor Costs: | E82: 0.75 | F82: mil US$/year | G82: Total Annual Wages | AF82: =E82 -> 0.75 | AG82: =AF82 -> 0.75 | AH82: 0.75 | AI82: 0.75
C83: Maintenance Costs: | E83: 1 | F83: mil US$/year | G83: Total Maintenance Cost per Annum. | AF83: =E83 -> 1 | AG83: =AF83 -> 1 | AH83: 1 | AI83: 1
C84: Miscellaneous Costs: | E84: 0.5 | F84: mil US$/year | G84: Other Additional Relevant Costs Spended per Annum | AF84: =E84 -> 0.5 | AG84: =AF84 -> 0.5 | AH84: 0.5 | AI84: 0.5
C86: Cost of Steam (Individual Breakdown)
C87: Fuel Cost: | E87: =E5*(MAX(J38:J39)-J49)/1000/(E6/100) -> 10.30655145 | F87: =IF(Units_Pref=1,"US$/1,000lb","US$/tonne") -> US$/1,000lb
C88: Boiler Feedwater Cost: | E88: =(S74*E5+E74+E73)*E75/100 -> 0.04264336868 | F88: US$/1,000lb | G88: Cost of Makeup Water + Cost of Chemical Treatment + Cost of Energy of BFW
C89: Electrical Cost: | E89: =E71*3600/E104/3600*E70 -> 0.02494758035 | F89: US$/1,000lb | G89: Cost of Feedwater Pump Power Usage + Blower Power Usage
C90: Blowdown Cost: | E90: =Q79*1000/(62.42796058*Unit_Preference_Mass/Unit_Preference_Length^3)/E104*E76/100 -> 0.004341105777 | F90: US$/1,000lb
C91: Waste Disposal Cost: | E91: =(J38-J49)/(E6/100)*(E79/10000)/1000*1000*E78 -> 0.00288418722 | F91: US$/1,000lb
C92: Emission Cost: | E92: =(MAX(J38:J39)-J49)/(E6/100)/10^6*1000*E81/1000*E80 -> 1.236786174 | F92: US$/1,000lb
C93: Labor Cost: | E93: =E82/$E$68/$E$104*10^6 -> 0.3543690391 | F93: US$/1,000lb
C94: Maintenance Cost: | E94: =E83/$E$68/$E$104*10^6 -> 0.4724920521 | F94: US$/1,000lb
C95: Miscellaneous Cost: | E95: =E84/$E$68/$E$104*10^6 -> 0.236246026 | F95: US$/1,000lb
C96: Power Credits: | E96: =-IF(Units_Pref=1,W64*Unit_Preference_Energy_SI,W64)*3600/E104*E70/3600 -> -0.6711571609 | F96: US$/1,000lb
C98: Cost of Steam Calculated: | E98: =SUM(E87:E96) -> 12.01010382 | F98: =IF(Units_Pref=1,"per 1,000 lbs of steam","per tonne of steam") -> per 1,000 lbs of steam
D100: Simplified Schematic Flowsheet for a Steam System | K100: =IF(MIN(B104:M125)>-(10^(-6)),"Model Status: Ok","Model Status: Failed") -> Model Status: Ok
K101: =IF(MIN(B104:M125)>-(10^(-6)),""," Please recheck your entries.") -> 
G102: Process Summary
G103: Total Steam Produced: | I103: =E104 -> 264.5547146 | J103: =F104 -> klb/h | P103: =(MIN(B104:M122)) -> 0
E104: =IF(E69<P107,P107,E69) -> 264.5547146 | F104: =$L$125 -> klb/h | G104: Total Steam to Users: | I104: =O107+O110+O114 -> 253.5316015 | J104: =F104 -> klb/h
E105: =ROUND(U38*Unit_Preference_Pres,0) & " " & IF(Units_Pref=1,"psig","barg") -> 315 psig | G105: Total Power Gen. : | I105: =IF(Units_Pref=1,W64*Unit_Preference_Energy_SI,W64) -> 2959.296519 | J105: kW
D106: =C118*E77/100 -> 13.92393235 | E106: =ROUND(IF(Units_Pref=1,MAX(W38:W39),(MAX(W38:W39)-32)*5/9),0) & " " & F72 -> 440 °F | G106: Makeup H2O Required : | I106: =G118 -> 55.69572939 | J106: =H118 -> klb/h | O106: Flow to User | P106: Min HP Header Inlet Flow
D107: =$L$125 -> klb/h | L107: =ROUND(U38*Unit_Preference_Pres,0)&" "&$G$51 & "," -> 315 psia, | M107: =IF(ISBLANK(G38),0,ROUND(L38,1))&IF(Units_Pref=1," klb/h"," ton/h") -> 22 klb/h | O107: =IF(ISBLANK(G38),0,L38) -> 22.04622622 | P107: =MAX((IF(O114>(F108+H112),O114,(F108+H112))+O107+J108+O110+IF(D108>(O110+MAX(H112,O114)),(D108-O110-MAX(H112,O114)),0)),(D108+F108+J108+O107)) -> 253.5316015
C108: =E104-D108-F108-J108-O107 -> 165.3466966 | D108: =IF(X53>0,I52,0) -> 33.06933933 | F108: =IF(X56>0,I55,0) -> 44.09245244 | J108: =IF(X62>0,I61,0) -> 0
C109: =$L$125 -> klb/h | D109: =$L$125 -> klb/h | F109: =$L$125 -> klb/h | J109: =$L$125 -> klb/h | K109: =" " & ROUND(IF(Units_Pref=1,W62*Unit_Preference_Energy_SI,W62),0) & " kW" -> 0 kW
F110: =ROUND(IF(Units_Pref=1,W53*Unit_Preference_Energy_SI,W53),0) & " kW" -> 976 kW | H110: =ROUND(IF(Units_Pref=1,W56*Unit_Preference_Energy_SI,W56),0) & " kW" -> 1983 kW | L110: =ROUND(U40*Unit_Preference_Pres,0)&" "&$G$51 & "," -> 65 psia, | M110: =IF(ISBLANK(G40),0,ROUND(L40,1)) & IF(Units_Pref=1," klb/h", " ton/h") -> 132.3 klb/h | O110: =IF(ISBLANK(G40),0,L40) -> 132.2773573
C112: =D108+C108-H112-O110 -> 66.13867866 | H112: =IF(X59>0,I58,0) -> 0
C113: =$L$125 -> klb/h | H113: =$L$125 -> klb/h | J113: =" " & ROUND(IF(Units_Pref=1,W59*Unit_Preference_Energy_SI,W59),0) & " kW" -> 0 kW
L114: =ROUND(U41*Unit_Preference_Pres,0)&" "&$G$51 & "," -> 25 psia, | M114: =IF(ISBLANK(G41),0,ROUND(L41,1)) & IF(Units_Pref=1," klb/h", " ton/h") -> 99.2 klb/h | O114: =IF(ISBLANK(G41),0,L41) -> 99.20801798
F115: =IF((J108+K119)<K125,IF((C112+H112+F108+J108+K119-O114-K125)<0,0,(C112+H112+F108-O114-K125+J108+K119)),C112+H112+F108-O114) -> 11.02311311
F116: =$L$125 -> klb/h
C117: =IF(Units_Pref=1,W72,(W72-32)*5/9) & " " &F72 -> 89.6 °F
C118: =E104/(100-E77)*100 -> 278.478647 | G118: =C118*E75/100 -> 55.69572939 | H118: =$L$125 -> klb/h | O118: =(C112+H112+F108-O114-K125) -> -30.74868394
C119: =$L$125 -> klb/h | K119: =O107+O110+O114 -> 253.5316015 | L119: =IF(Units_Pref=1," klb/h", " ton/h") -> klb/h
F120: =IF((J108+K119)<K125,0,C118-F115-G118) -> 211.7598045
F121: =$L$125 -> klb/h
F122: =ROUND(U47*Unit_Preference_Pres,0)&" "&$G$51 -> 15 psia
K125: =G118-D106 -> 41.77179705 | L125: =IF(Units_Pref=1,"klb/h", "ton/h") -> klb/h
C127: Copy Rights: Not to be copied or distributed without specific permission from Inveno Engineering LLC; kelly.paffel@invenoeng.com

Sheet Blank for Calculation
A1: User Calculations Sheet
A3: This is a blank sheet provided for the user to make notes, carry out calculations etc.

Sheet Functions (hidden)
A1: X Steam Tables | D1: v2.6 | E1: http://www.x-eng.com
A2: Steam tables by Magnus Holmgren according to IAPWS IF-97
A3: The excel scripts are stored inside this workbook. (No extra files are needed. Start from a copy of this workbook. This page can be removed)
A4: For error-reporting, feedback, other units etc. contact: | F4: magnus@x-eng.com
A5: The steam tables are free and provided as is. We take no responsibilities for any errors in the code or damage thereby.
A6: OBS: This workbook uses macros. Set security options in Tools:Macro:Security… to enable macros.
A8: Temperature
A9: Tsat_p | B9: 14.5037738 | C9: psi | F9: =Tsat_p(B9) -> 211.2906536 | G9: deg F | H9: Saturation temperature
A10: T_ph | B10: 1 | C10: psi | D10: 100 | E10: btu/lb | F10: =T_ph(B10,D10) -> 101.6943372 | G10: deg F | H10: Temperture as a function of pressure and enthalpy
A11: T_ps | B11: 1 | C11: psi | D11: 1 | E11: btu/(lb F) | F11: =T_ps(B11,D11) -> 101.6943372 | G11: deg F | H11: Temperture as a function of pressure and entropy
A12: T_hs | B12: 100 | C12: btu/lb | D12: 0.2 | E12: btu/(lb F) | F12: =T_hs(B12,D12) -> 40.71270876 | G12: deg F | H12: Temperture as a function of enthalpy and entropy
A13: Pressure
A14: psat_T | B14: 100 | C14: deg F | F14: =psat_t(B14) -> 0.9504393308 | G14: psi (a) | H14: Saturation pressure
A15: p_hs | B15: 100 | C15: btu/lb | D15: =F49 -> 0.1851252476 | E15: btu/(lb F) | F15: =p_hs(B15,D15) -> 5.988291907 | G15: psi (a) | H15: Pressure as a function of h and s.
A16: p_hrho | B16: 100 | C16: btu/lb | D16: 5 | E16: lb/ft3 | F16: =p_hrho(B16,D16) -> 2.273731918 | G16: psi (a) | H16: Pressure as a function of h and rho (density). Very unaccurate for solid water region since it's almost incompressible!
A17: Enthalpy
A18: hV_p | B18: 1 | C18: psi | F18: =hV_p(B18) -> 1105.439339 | G18: btu/lb | H18: Saturated vapour enthalpy
A19: hL_p | B19: 1 | C19: psi | F19: =hL_p(B19) -> 69.72823905 | G19: btu/lb | H19: Saturated liquid enthalpy
A20: hV_T | B20: 100 | C20: deg F | F20: =hV_T(B20) -> 1104.714855 | G20: btu/lb | H20: Saturated vapour enthalpy
A21: hL_T | B21: 100 | C21: deg F | F21: =hL_T(B21) -> 68.03698564 | G21: btu/lb | H21: Saturated liquid enthalpy
A22: h_pT | B22: 14.5037738 | C22: psi | D22: 68 | E22: deg F | F22: =h_pt(B22,D22) -> 36.11857746 | G22: btu/lb | H22: Entalpy as a function of pressure and temperature.
A23: h_ps | B23: 1 | C23: psi | D23: 1 | E23: btu/(lb F) | F23: =h_ps(B23,D23) -> 556.6369136 | G23: btu/lb | H23: Entalpy as a function of pressure and entropy.
A24: h_px | B24: 1 | C24: psi | D24: 0.5 | F24: =h_px(B24,D24) -> 587.5837889 | G24: btu/lb | H24: Entalpy as a function of pressure and vapour fraction
A25: h_Tx | B25: 100 | C25: deg F | D25: 0.5 | F25: =h_tx(B25,D25) -> 586.3759202 | G25: btu/lb | H25: Entalpy as a function of temperature and vapour fraction
A26: h_prho | B26: 1 | C26: psi | D26: 2 | E26: lb/ft3 | F26: =h_prho(B26,D26) -> 71.23095397 | G26: btu/lb | H26: Entalpy as a function of pressure and density. Observe for low temperatures (liquid) this equation has 2 solutions. (Not valid!!)
A27: Specific volume
A28: vV_p | B28: 1 | C28: psi | F28: =vV_p(B28) -> 333.5075189 | G28: ft3/lb | H28: Saturated vapour volume
A29: vL_p | B29: 1 | C29: psi | F29: =vL_p(B29) -> 0.01613681121 | G29: ft3/lb | H29: Saturated liquid volume
A30: vV_T | B30: 100 | C30: deg F | F30: =vV_T(B30) -> 349.8695999 | G30: ft3/lb | H30: Saturated vapour volume
A31: vL_T | B31: 100 | C31: deg F | F31: =vL_T(B31) -> 0.01613117433 | G31: ft3/lb | H31: Saturated liquid volume
A32: v_pT | B32: 1 | C32: psi | D32: 100 | E32: deg F | F32: =v_pT(B32,D32) -> 0.01613117189 | G32: ft3/lb | H32: Specific volume as a function of pressure and temperature.
A33: v_ph | B33: 1 | C33: psi | D33: 1000 | E33: btu/lb | F33: =v_ph(B33,D33) -> 299.5568248 | G33: ft3/lb | H33: Specific volume as a function of pressure and enthalpy
A34: v_ps | B34: 10 | C34: psi | D34: =F49 -> 0.1851252476 | E34: btu/(lb F) | F34: =v_ps(B34,D34) -> 0.01625542384 | G34: ft3/lb | H34: Specific volume as a function of pressure and entropy.
A35: Density
A36: rhoV_p | B36: 1 | C36: psi | F36: =rhoV_p(B36) -> 0.002998433148 | G36: lb/ft3 | H36: Saturated vapour density
A37: rhoL_p | B37: 1 | C37: psi | F37: =rhoL_P(B37) -> 61.97011213 | G37: lb/ft3 | H37: Saturated liquid density
A38: rhoV_T | B38: 100 | C38: deg F | F38: =rhoV_T(B38) -> 0.002858207745 | G38: lb/ft3 | H38: Saturated vapour density
A39: rhoL_T | B39: 100 | C39: deg F | F39: =rhoL_T(B39) -> 61.99176698 | G39: lb/ft3 | H39: Saturated liquid density
A40: rho_pT | B40: 1 | C40: psi | D40: 100 | E40: deg F | F40: =rho_pT(B40,D40) -> 61.99177634 | G40: lb/ft3 | H40: Density as a function of pressure and temperature.
A41: rho_ph | B41: 1 | C41: psi | D41: 1000 | E41: btu/lb | F41: =rho_ph(B41,D41) -> 0.003338264788 | G41: lb/ft3 | H41: Density as a function of pressure and enthalpy
A42: rho_ps | B42: 1 | C42: psi | D42: 1 | E42: btu/(lb F) | F42: =rho_ps(B42,D42) -> 0.006377666498 | G42: lb/ft3 | H42: Density as a function of pressure and entropy.
A43: Specific entropy
A44: sV_p | B44: 1 | C44: psi | F44: =sV_p(B44) -> 1.97762468 | G44: btu/(lb F) | H44: Saturated vapour entropy
A45: sL_p | B45: 1 | C45: psi | F45: =sL_p(B45) -> 0.1326314985 | G45: btu/(lb F) | H45: Saturated liquid entropy
A46: sV_T | B46: 50 | C46: deg F | F46: =sV_T(B46) -> 2.125691679 | G46: btu/(lb F) | H46: Saturated vapour entropy
A47: sL_T | B47: 100 | C47: deg F | F47: =sL_T(B47) -> 0.1296144513 | G47: btu/(lb F) | H47: Saturated liquid entropy
A48: s_pT | B48: 1 | C48: psi | D48: 50 | E48: deg F | F48: =s_pT(B48,D48) -> 0.0360859339 | G48: btu/(lb F) | H48: Specific entropy as a function of pressure and temperature (Returns saturated vapour entalpy if mixture.)
A49: s_ph | B49: 10 | C49: psi | D49: 100 | E49: btu/lb | F49: =s_ph(B49,D49) -> 0.1851252476 | G49: btu/(lb F) | H49: Specific entropy as a function of pressure and enthalpy
A50: Specific internal energy
A51: uV_p | B51: 1 | C51: psi | F51: =uV_p(B51) -> 1043.723867 | G51: btu/lb | H51: Saturated vapour internal energy
A52: uL_p | B52: 1 | C52: psi | F52: =uL_p(B52) -> 69.72525294 | G52: btu/lb | H52: Saturated liquid internal energy
A53: uV_T | B53: 100 | C53: deg F | F53: =uV_T(B53) -> 1043.180305 | G53: btu/lb | H53: Saturated vapour internal energy
A54: uL_T | B54: 100 | C54: deg F | F54: =uL_T(B54) -> 68.03414851 | G54: btu/lb | H54: Saturated liquid internal energy
A55: u_pT | B55: 1 | C55: psi | D55: 100 | E55: deg F | F55: =u_pT(B55,D55) -> 68.0341316 | G55: btu/lb | H55: Specific internal energy as a function of pressure and temperature.
A56: u_ph | B56: 1 | C56: psi | D56: 1000 | E56: btu/lb | F56: =u_ph(B56,D56) -> 944.567095 | G56: btu/lb | H56: Specific internal energy as a function of pressure and enthalpy
A57: u_ps | B57: 1 | C57: psi | D57: 1 | E57: btu/(lb F) | F57: =u_ps(B57,D57) -> 527.6216438 | G57: btu/lb | H57: Specific internal energy as a function of pressure and entropy.
A58: Specific isobaric heat capacity
A59: CpV_p | B59: 1 | C59: psi | F59: =CpV_p(B59) -> 0.4610466176 | G59: btu/(lb F) | H59: Saturated vapour heat capacity
A60: CpL_p | B60: 1 | C60: psi | F60: =CpL_p(B60) -> 0.9980961319 | G60: btu/(lb F) | H60: Saturated liquid heat capacity
A61: CpV_T | B61: 100 | C61: deg F | F61: =CpV_T(B61) -> 0.4607141352 | G61: btu/(lb F) | H61: Saturated vapour heat capacity
A62: CpL_T | B62: 100 | C62: deg F | F62: =CpL_T(B62) -> 0.9981101482 | G62: btu/(lb F) | H62: Saturated liquid heat capacity
A63: Cp_pT | B63: 1 | C63: psi | D63: 100 | E63: deg F | F63: =Cp_pT(B63,D63) -> 0.9981099431 | G63: btu/(lb F) | H63: Specific isobaric heat capacity as a function of pressure and temperature.
A64: Cp_ph | B64: 100 | C64: psi | D64: 200 | E64: btu/lb | F64: =Cp_ph(B64,D64) -> 1.010383515 | G64: btu/(lb F) | H64: Specific isobaric heat capacity as a function of pressure and enthalpy
A65: Cp_ps | B65: 100 | C65: psi | D65: =F49 -> 0.1851252476 | E65: btu/(lb F) | F65: =Cp_ps(B65,D65) -> 0.9983168509 | G65: btu/(lb F) | H65: Specific isobaric heat capacity as a function of pressure and entropy.
A66: Specific isochoric heat capacity
A67: CvV_p | B67: 1 | C67: psi | F67: =CvV_p(B67) -> 0.3473815118 | G67: btu/(lb F) | H67: Saturated vapour isochoric heat capacity
A68: CvL_p | B68: 1 | C68: psi | F68: =CvL_p(B68) -> 0.9741948707 | G68: btu/(lb F) | H68: Saturated liquid isochoric heat capacity
A69: CvV_T | B69: 100 | C69: deg F | F69: =CvV_T(B69) -> 0.3471349757 | G69: btu/(lb F) | H69: Saturated vapour isochoric heat capacity
A70: CvL_T | B70: 100 | C70: deg F | F70: =CvL_T(B70) -> 0.9752371398 | G70: btu/(lb F) | H70: Saturated liquid isochoric heat capacity
A71: Cv_pT | B71: 1 | C71: psi | D71: 100 | E71: deg F | F71: =Cv_pT(B71,D71) -> 0.9752369016 | G71: btu/(lb F) | H71: Specific isochoric heat capacity as a function of pressure and temperature.
A72: Cv_ph | B72: 100 | C72: psi | D72: 200 | E72: btu/lb | F72: =Cv_ph(B72,D72) -> 0.8867422172 | G72: btu/(lb F) | H72: Specific isochoric heat capacity as a function of pressure and enthalpy
A73: Cv_ps | B73: 100 | C73: psi | D73: =D65 -> 0.1851252476 | E73: btu/(lb F) | F73: =Cv_ps(B73,D73) -> 0.9541207319 | G73: btu/(lb F) | H73: Specific isochoric heat capacity as a function of pressure and entropy.
A74: Speed of sound
A75: wV_p | B75: 1 | C75: psi | F75: =wV_p(B75) -> 1430.023344 | G75: ft/s | H75: Saturated vapour speed of sound
A76: wL_p | B76: 1 | C76: psi | F76: =wL_p(B76) -> 5016.126591 | G76: ft/s | H76: Saturated liquid speed of sound
A77: wV_T | B77: 100 | C77: deg F | F77: =wV_T(B77) -> 1427.980732 | G77: ft/s | H77: Saturated vapour speed of sound
A78: wL_T | B78: 100 | C78: deg F | F78: =wL_T(B78) -> 5010.524066 | G78: ft/s | H78: Saturated liquid speed of sound
A79: w_pT | B79: 1 | C79: psi | D79: 100 | E79: deg F | F79: =w_pT(B79,D79) -> 5010.525873 | G79: ft/s | H79: Speed of sound as a function of pressure and temperature.
A80: w_ph | B80: 100 | C80: psi | D80: 100 | E80: btu/lb | F80: =w_ph(B80,D80) -> 5090.517797 | G80: ft/s | H80: Speed of sound as a function of pressure and enthalpy
A81: w_ps | B81: 100 | C81: psi | D81: =D73 -> 0.1851252476 | E81: btu/(lb F) | F81: =w_ps(B81,D81) -> 5090.919366 | G81: ft/s | H81: Speed of sound as a function of pressure and entropy.
A82: Dynamic Viscosity
A83: Viscosity is not part of IAPWS Steam IF97. Equations from ""Revised Release on the IAPWS Formulation 1985 for the Viscosity of Ordinary Water Substance"", 2003 are used.
A84: Viscosity in the mixed region (4) is interpolated according to the density. This is not true since it will be two fases.
A85: my_pT | B85: 1 | C85: psi | D85: 100 | E85: deg F | F85: =my_pT(B85,D85) -> 1.647817811 | G85: lb/ft/hr | H85: Viscosity as a function of pressure and temperature.
A86: my_ph | B86: 100 | C86: psi | D86: 100 | E86: btu/lb | F86: =my_ph(B86,D86) -> 1.211118873 | G86: lb/ft/hr | H86: Viscosity as a function of pressure and enthalpy
A87: my_ps | B87: 100 | C87: psi | D87: =D81 -> 0.1851252476 | E87: btu/(lb F) | F87: =my_ps(B87,D87) -> 1.208179571 | G87: lb/ft/hr | H87: Viscosity as a function of pressure and entropy.
A88: Prandtl
A89: Calcualted as Cp*my/tc
A90: pr_pT | B90: 1 | C90: psi | D90: 200 | E90: deg F | F90: =pr_pT(B90,D90) -> 0.9701202438 | G90: -
A91: pr_ph | B91: 1 | C91: psi | D91: 0.19 | E91: btu/lb | F91: =pr_ph(B91,D91) -> 13.40562938 | G91: -
A92: Thermal Conductivity
A93: Revised release on the IAPS Formulation 1985 for the Thermal Conductivity of ordinary water substance (IAPWS 1998)
A94: tcL_p | B94: 1 | C94: psi | F94: =tcL_p(B94) -> 0.3622261387 | G94: btu/(h*ft*F) | H94: Saturated vapour thermal conductivity
A95: tcV_p | B95: 1 | C95: psi | F95: =tcV_p(B95) -> 0.01119774893 | G95: btu/(h*ft*F) | H95: Saturated liquid thermal conductivity
A96: tcL_T | B96: 50 | C96: deg F | F96: =tcL_T(B96) -> 0.3362266821 | G96: btu/(h*ft*F) | H96: Saturated vapour thermal conductivity
A97: tcV_T | B97: 50 | C97: deg F | F97: =tcV_T(B97) -> 0.009946376555 | G97: btu/(h*ft*F) | H97: Saturated liquid thermal conductivity
A98: tc_pT | B98: 1 | C98: psi | D98: 50 | E98: deg F | F98: =tc_pt(B98,D98) -> 0.3362285212 | G98: btu/(h*ft*F) | H98: Thermal conductivity as a function of pressure and temperature.
A99: tc_ph | B99: 1 | C99: psi | D99: 100 | E99: btu/(lb F) | F99: =tc_ph(B99,D99) -> 0.020136752 | G99: btu/(h*ft*F) | H99: Thermal conductivity as a function of pressure and enthalpy
A100: tc_hs | B100: 100 | C100: btu/lb | D100: =D73 -> 0.1851252476 | E100: btu/(lb F) | F100: =tc_hs(B100,D100) -> 0.373481961 | G100: btu/(h*ft*F) | H100: Thermal conductivity as a function of enthalpy and entropy
A101: Surface Tension
A102: IAPWS Release on Surface Tension of Ordinary Water Substance, September 1994
A103: st_T | B103: 100 | C103: deg F | F103: =st_T(B104) -> 0.005342277531 | G103: lb/ft | H103: Surface tension for two phase water/steam as a function of T
A104: st_p | B104: 1 | C104: psi | F104: =st_p(B104) -> 0.00478309732 | G104: lb/ft | H104: Surface tension for two phase water/steam as a function of T
A105: Vapour fraction
A106: x_ph | B106: 1 | C106: psi | D106: 1000 | E106: btu/lb | F106: =x_ph(B106,D106) -> 0.8981961874 | H106: Vapour fraction as a function of pressure and enthalpy
A107: x_ps | B107: 1 | C107: psi | D107: 4 | E107: btu/(lb F) | F107: =x_ps(B107,D107) -> 1 | H107: Vapour fraction as a function of pressure and entropy.
A108: Vapour Volume Fraction
A109: Observe that vapour volume fraction is very sensitive. Vapour volume is about 1000 times greater than liquid volume and therfore vapour volume fraction
A110: gets close to the accurancy of steam IF-97
A111: vx_ph | B111: 1 | C111: psi | D111: 418 | E111: btu/lb | F111: =vx_ph(B111,D111) -> 0.9999045037 | H111: Vapour volume fraction as a function of pressure and enthalpy
A112: vx_ps | B112: 1 | C112: psi | D112: 4 | E112: btu/(lb F) | F112: =vx_ps(B112,D112) -> 1 | H112: Vapour volume fraction as a function of pressure and entropy.
A114: Version history
A115: News in V2.6
A116: * Error in valid region for function tc_ptrho
A117: * Error in function h3_pt for temperatures near the saturation point.
A118: News in V2.5
A119: * DLL distrubution for use in other applications
A120: * Freebasic translation
A121: * Fixed small error in Cv Region 5 p>1000bar
A122: News in V2.4a
A123: Fixed unit conversion in T_ps region4 (No effekt for SI units.)
A124: News in V2.4
A125: * TODO!!! Check Cv in region 5
A126: * ToDO!!! Tc och my not def. In region 4
A127: * OpenOffice version introduced. (Fixed calculation differences in open office and excel)
A128: * Matlab error giving varaible undefined in some backwards solutions fixed.
A129: News in V2.3
A130: * Option Explicit, gives more efficient calculations.
A131: * Extensive testing
A132: * my_ph not defined in region 4.
A133: * Problems at region border for h4V_p to adress solver problems at the exact border.
A134: * Problem at fast border check in region_ph fixed.
A135: News in V2.2
A136: * Extensive testing
A137: * Fixed error in Cp_ph
A138: * Function p_hrho added. (Very good for calcualting pressure when heating a volume with water/steam mixture.)
A139: * Fixed error in T_hs return no value for vet region bellow the water saturation line.
A140: * Prandtl number added
A141: News in V2.1
A142: * Calling function h_prho
A143: * Fixed problem with Cv reporting NaN in region 5.
A144: * Equivivalent to the Matlab version. (Downloadable from www.x-eng.com)
A145: News in V2
A146: * Calling functions of h and s added.
A147: * Thermal conductivity, Surface tension added
A148: * Calling functions h_px and h_tx added.
A149: * Cp, Cv and w undefined in the mixed region. (Before interpolation with the vapor fraction was used.)
A150: * A work sheet ""Properties"" for simple lookups added.
A151: * Cp, Cv and w undefined in the mixed region. (Before interpolation with the vapor fraction was used.)
A152: * A work sheet "Properties" for simple lookups added.
